fUSD/lending_fUSD_20250113
["ID","MTS","AMOUNT","RATE_DAILY","PERIOD"]
[348727460,1736755833195,-975.37,0.00010444,2]
[348727461,1736755833205,-500.0,0.00010444,2]
[348727462,1736755833214,-500.0,0.00010445,2]
[348727463,1736755833223,-500.0,0.00010445,2]
[348727464,1736755833232,-500.0,0.00010445,2]
[348727465,1736755833242,-503.53542871,0.00010445,2]
[348727466,1736755833251,-500.0,0.00010445,2]
[348727467,1736755833260,-500.0,0.00010445,2]
[348727468,1736755833269,-500.0,0.00010445,2]
[348727469,1736755833278,-500.0,0.00010445,2]
[348727470,1736755833287,-452.46200351,0.00010445,2]
[348727471,1736755833312,-1222.11962353,0.00010273,2]
[348727472,1736755833324,-296.50037647,0.00010273,2]
[348727473,1736755833334,-49.44640018,0.00010445,2]
[348727474,1736755833344,-500.0,0.00010445,2]
[348727475,1736755833353,-502.83098358,0.00010445,2]
[348727476,1736755833363,-500.0,0.00010445,2]
[348727477,1736755833372,-500.0,0.00010445,2]
[348727478,1736755833382,-500.0,0.00010445,2]
[348727479,1736755833392,-500.0,0.00010445,2]
[348727480,1736755833401,-501.23001669,0.00010445,2]
[348727481,1736755833411,-445.80520274,0.00010445,2]
[348727482,1736755833420,-500.0,0.00010445,2]
[348727483,1736755833431,-500.0,0.00010445,2]
[348727484,1736755833440,-500.0,0.00010445,2]
[348727485,1736755833450,-500.0,0.00010445,2]
[348727486,1736755833461,-500.0,0.00010445,2]
[348727487,1736755833470,-500.0,0.00010445,2]
[348727488,1736755833480,-500.0,0.00010445,2]
[348727489,1736755833490,-506.64576768,0.00010445,2]
[348727490,1736755833500,-515.90759764,0.00010445,2]
[348727491,1736755833511,-500.0,0.00010445,2]
[348727492,1736755833520,-500.0,0.00010445,2]
[348727493,1736755833530,-500.0,0.00010445,2]
[348727494,1736755833540,-500.0,0.00010445,2]
[348727495,1736755833550,-500.0,0.00010445,2]
[348727496,1736755833562,-500.0,0.00010445,2]
[348727497,1736755833572,-500.0,0.00010445,2]
[348727498,1736755833582,-500.0,0.00010445,2]
[348727499,1736755833592,-500.0,0.00010445,2]
[348727500,1736755833602,-500.0,0.00010445,2]
[348727501,1736755833612,-500.0,0.00010445,2]
[348727502,1736755833621,-500.0,0.00010445,2]
[348727503,1736755833631,-500.0,0.00010445,2]
[348727504,1736755833640,-500.0,0.00010445,2]
[348727505,1736755833650,-500.0,0.00010445,2]
[348727506,1736755833662,-500.0,0.00010445,2]
[348727507,1736755833672,-500.0,0.00010445,2]
[348727508,1736755833681,-500.0,0.00010445,2]
[348727509,1736755833691,-500.0,0.00010445,2]
[348727510,1736755833700,-500.0,0.00010445,2]
[348727511,1736755833710,-500.0,0.00010445,2]
[348727512,1736755833720,-500.0,0.00010445,2]
[348727513,1736755833730,-500.0,0.00010445,2]
[348727514,1736755833739,-500.0,0.00010445,2]
[348727515,1736755833749,-500.0,0.00010445,2]
[348727516,1736755833759,-505.14286578,0.00010445,2]
[348727517,1736755833768,-500.0,0.00010445,2]
[348727518,1736755833778,-500.0,0.00010445,2]
[348727519,1736755833788,-500.0,0.00010445,2]
[348727520,1736755833797,-500.0,0.00010445,2]
[348727521,1736755833807,-500.0,0.00010445,2]
[348727522,1736755833817,-500.0,0.00010445,2]
[348727523,1736755833828,-500.0,0.00010445,2]
[348727524,1736755833838,-500.0,0.00010445,2]
[348727525,1736755833848,-500.0,0.00010445,2]
[348727526,1736755833858,-500.0,0.00010445,2]
[348727527,1736755833867,-445.07696134,0.00010445,2]
[348727528,1736755835266,-54.92303866,0.00010445,2]
[348727529,1736755835277,-500.0,0.00010445,2]
[348727530,1736755835287,-500.0,0.00010445,2]
[348727531,1736755835296,-500.0,0.00010445,2]
[348727532,1736755835307,-500.0,0.00010445,2]
[348727533,1736755835316,-393.88628867,0.00010445,2]
[348727534,1736755835327,-106.11371133,0.00010445,2]
[348727535,1736755835337,-174.21,0.00010445,2]
[348727536,1736755835346,-500.0,0.00010445,2]
[348727537,1736755835355,-500.0,0.00010445,2]
[348727538,1736755835365,-511.53,0.00010445,2]
[348727539,1736755835375,-500.0,0.00010445,2]
[348727541,1736755835385,-500.0,0.00010445,2]
[348727543,1736755835395,-500.0,0.00010445,2]
[348727545,1736755835404,-500.0,0.00010445,2]
[348727547,1736755835413,-500.0,0.00010445,2]
[348727549,1736755835423,-500.0,0.00010445,2]
[348727551,1736755835432,-500.0,0.00010445,2]
[348727553,1736755835441,-500.0,0.00010445,2]
[348727555,1736755835450,-500.0,0.00010445,2]
[348727557,1736755835459,-500.0,0.00010445,2]
[348727558,1736755835468,-500.0,0.00010445,2]
[348727559,1736755835478,-500.0,0.00010445,2]
[348727560,1736755835487,-500.0,0.00010445,2]
[348727561,1736755835496,-500.0,0.00010445,2]
[348727562,1736755835505,-500.0,0.00010445,2]
[348727563,1736755835514,-500.0,0.00010445,2]
[348727564,1736755835523,-181.81,0.00010445,2]
[348727565,1736755835533,-500.0,0.00010445,2]
[348727566,1736755835542,-500.0,0.00010445,2]
[348727567,1736755835551,-500.0,0.00010445,2]
[348727568,1736755835561,-500.0,0.00010445,2]
[348727569,1736755835570,-453.5475002,0.00010445,2]
[348727570,1736755835579,-500.0,0.00010445,2]
[348727572,1736755835589,-474.96123096,0.00010445,2]
[348727575,1736755835599,-334.45153891,0.00010445,2]
[348727578,1736755835608,-500.0,0.00010445,2]
[348727581,1736755835617,-500.0,0.00010445,2]
[348727585,1736755835626,-500.0,0.00010445,2]
[348727589,1736755835635,-500.0,0.00010445,2]
[348727592,1736755835644,-612.0177811,0.00010445,2]
[348727595,1736755835653,-526.08178114,0.00010445,2]
[348727598,1736755835664,-500.0,0.00010445,2]
[348727601,1736755835673,-500.0,0.00010445,2]
[348727604,1736755835683,-500.82804996,0.00010445,2]
[348727607,1736755835692,-376.58158531,0.00010445,2]
[348727609,1736755835701,-500.0,0.00010445,2]
[348727611,1736755835710,-500.0,0.00010445,2]
[348727613,1736755835718,-500.0,0.00010445,2]
[348727614,1736755835728,-500.0,0.00010445,2]
[348727617,1736755835737,-500.0,0.00010445,2]
[348727620,1736755835746,-500.0,0.00010445,2]
[348727623,1736755835755,-500.0,0.00010445,2]
[348727625,1736755835764,-516.71699819,0.00010445,2]
[348727627,1736755835772,-500.0,0.00010445,2]
[348727629,1736755835781,-500.0,0.00010445,2]
[348727631,1736755835790,-500.0,0.00010445,2]
[348727633,1736755835800,-500.0,0.00010445,2]
[348727635,1736755835809,-500.0,0.00010445,2]
[348727637,1736755835819,-500.0,0.00010445,2]
[348727639,1736755835830,-499.1770922,0.00010445,2]
[348727641,1736755835839,-500.0,0.00010445,2]
[348727643,1736755835848,-500.0,0.00010445,2]
[348727644,1736755835858,-500.0,0.00010445,2]
[348727647,1736755835867,-500.0,0.00010445,2]
[348727648,1736755835877,-500.0,0.00010445,2]
[348727650,1736755835886,-500.0,0.00010445,2]
[348727652,1736755835895,-500.0,0.00010445,2]
[348727654,1736755835904,-500.0,0.00010445,2]
[348727656,1736755835914,-506.39140587,0.00010445,2]
[348727658,1736755835924,-228.30177319,0.00010445,2]
[348727660,1736755835933,-500.0,0.00010445,2]
[348727662,1736755835942,-500.0,0.00010445,2]
[348727664,1736755835951,-500.0,0.00010445,2]
[348727666,1736755835960,-556.13,0.00010445,2]
[348727667,1736755835969,-500.0,0.00010445,2]
[348727668,1736755835978,-500.0,0.00010445,2]
[348727669,1736755835990,-500.0,0.00010445,2]
[348727670,1736755835999,-500.0,0.00010445,2]
[348727671,1736755836008,-500.0,0.00010445,2]
[348727672,1736755836020,-500.0,0.00010445,2]
[348727673,1736755836032,-500.0,0.00010445,2]
[348727674,1736755836042,-500.0,0.00010445,2]
[348727675,1736755836051,-500.0,0.00010445,2]
[348727676,1736755836063,-500.0,0.00010445,2]
[348727677,1736755836072,-500.0,0.00010445,2]
[348727678,1736755836081,-500.0,0.00010445,2]
[348727679,1736755836091,-1696.0,0.00010445,2]
[348727680,1736755836103,-500.0,0.00010445,2]
[348727681,1736755836112,-500.0,0.00010445,2]
[348727682,1736755836121,-2911.83,0.00010445,2]
[348727683,1736755836130,-500.0,0.00010445,2]
[348727684,1736755836140,-500.0,0.00010445,2]
[348727685,1736755836152,-500.0,0.00010445,2]
[348727686,1736755836162,-500.0,0.00010445,2]
[348727687,1736755836171,-1488.28,0.00010445,2]
[348727688,1736755836181,-500.0,0.00010445,2]
[348727689,1736755836192,-500.0,0.00010445,2]
[348727690,1736755836202,-500.0,0.00010445,2]
[348727691,1736755836213,-500.0,0.00010445,2]
[348727692,1736755836224,-1097.84,0.00010445,2]
[348727693,1736755836233,-500.0,0.00010445,2]
[348727694,1736755836243,-500.0,0.00010445,2]
[348727695,1736755836252,-500.0,0.00010445,2]
[348727696,1736755836261,-501.08562286,0.00010445,2]
[348727697,1736755836270,-1520.31,0.00010445,2]
[348727698,1736755836280,-500.0,0.00010445,2]
[348727699,1736755836289,-547.28,0.00010445,2]
[348727700,1736755836299,-500.0,0.00010445,2]
[348727701,1736755836308,-500.0,0.00010445,2]
[348727702,1736755836318,-503.48376511,0.00010445,2]
[348727703,1736755836327,-500.0,0.00010445,2]
[348727704,1736755836336,-500.0,0.00010445,2]
[348727705,1736755836346,-3429.0,0.00010445,2]
[348727706,1736755836355,-501.89173239,0.00010445,2]
[348727707,1736755836364,-506.05240763,0.00010445,2]
[348727708,1736755836374,-500.0,0.00010445,2]
[348727709,1736755836383,-503.50184012,0.00010445,2]
[348727710,1736755836393,-500.0,0.00010445,2]
[348727711,1736755836402,-1071.84,0.00010445,2]
[348727712,1736755836411,-500.0,0.00010445,2]
[348727713,1736755836423,-500.0,0.00010445,2]
[348727714,1736755836432,-500.0,0.00010445,2]
[348727715,1736755836441,-500.0,0.00010445,2]
[348727716,1736755836450,-500.0,0.00010445,2]
[348727717,1736755836460,-540.64783655,0.00010445,2]
[348727718,1736755836470,-542.44,0.00010445,2]
[348727719,1736755836479,-500.0,0.00010445,2]
[348727720,1736755836488,-1488.11,0.00010445,2]
[348727721,1736755836498,-500.0,0.00010445,2]
[348727722,1736755836507,-500.0,0.00010445,2]
[348727723,1736755836517,-272.36735285,0.00010445,2]
[348727725,1736755837459,-227.63264715,0.00010445,2]
[348727726,1736755837469,-410.90333889,0.00010445,2]
[348727727,1736755837481,-89.09666111,0.00010445,2]
[348727728,1736755837490,-500.0,0.00010445,2]
[348727729,1736755837500,-508.22833354,0.00010445,2]
[348727730,1736755837568,-134.12166646,0.00010445,2]
[348727731,1736755837577,-492.04913548,0.00010445,2]
[348727732,1736755837587,-500.0,0.00010445,2]
[348727733,1736755837596,-500.0,0.00010445,2]
[348727734,1736755837606,-1081.86,0.00010445,2]
[348727735,1736755837615,-500.0,0.00010445,2]
[348727736,1736755837624,-500.0,0.00010445,2]
[348727737,1736755837634,-500.0,0.00010445,2]
[348727738,1736755837644,-500.0,0.00010445,2]
[348727739,1736755837653,-865.54,0.00010445,2]
[348727740,1736755837662,-500.0,0.00010445,2]
[348727741,1736755837672,-500.0,0.00010445,2]
[348727742,1736755837681,-500.0,0.00010445,2]
[348727743,1736755837690,-500.0,0.00010445,2]
[348727744,1736755837700,-566.93,0.00010445,2]
[348727745,1736755837709,-500.0,0.00010445,2]
[348727746,1736755837718,-689.28,0.00010445,2]
[348727747,1736755837727,-500.0,0.00010445,2]
[348727748,1736755837737,-500.0,0.00010445,2]
[348727749,1736755837746,-500.0,0.00010445,2]
[348727750,1736755837755,-500.0,0.00010445,2]
[348727751,1736755837764,-649.63,0.00010445,2]
[348727752,1736755837773,-224.62417384,0.00010445,2]
[348727753,1736755837783,-500.0,0.00010445,2]
[348727754,1736755837793,-500.0,0.00010445,2]
[348727755,1736755837802,-500.0,0.00010445,2]
[348727756,1736755837812,-500.0,0.00010445,2]
[348727757,1736755837822,-500.0,0.00010445,2]
[348727758,1736755837831,-1835.83,0.00010445,2]
[348727759,1736755837840,-500.0,0.00010445,2]
[348727760,1736755837849,-500.0,0.00010445,2]
[348727761,1736755837858,-500.0,0.00010445,2]
[348727762,1736755837868,-500.0,0.00010445,2]
[348727763,1736755837879,-500.0,0.00010445,2]
[348727764,1736755837888,-500.0,0.00010446,2]
[348727765,1736755837897,-500.0,0.00010446,2]
[348727766,1736755837906,-500.0,0.00010446,2]
[348727767,1736755837915,-500.0,0.00010446,2]
[348727768,1736755837924,-500.0,0.00010446,2]
[348727769,1736755837933,-500.0,0.00010446,2]
[348727770,1736755837943,-519.66,0.00010446,2]
[348727771,1736755837951,-500.0,0.00010446,2]
[348727772,1736755837960,-500.0,0.00010446,2]
[348727773,1736755837969,-500.0,0.00010446,2]
[348727774,1736755837978,-743.4,0.00010446,2]
[348727775,1736755837987,-500.0,0.00010446,2]
[348727776,1736755837997,-511.55,0.00010446,2]
[348727777,1736755838006,-651.74,0.00010446,2]
[348727778,1736755838015,-890.08,0.00010446,2]
[348727779,1736755838028,-527.4,0.00010446,2]
[348727780,1736755838038,-730.7,0.00010446,2]
[348727781,1736755838047,-500.43117394,0.00010545,2]
[348727782,1736755838056,-500.0,0.00010545,2]
[348727783,1736755838068,-500.0,0.00010545,2]
[348727784,1736755838078,-244.48247272,0.00010545,2]
[348727785,1736755838101,-255.51752728,0.00010545,2]
[348727786,1736755838111,-500.0,0.00010545,2]
[348727787,1736755838120,-500.0,0.00010545,2]
[348727788,1736755838129,-503.20846297,0.00010545,2]
[348727789,1736755838139,-500.0,0.00010545,2]
[348727790,1736755838147,-500.0,0.00010545,2]
[348727791,1736755838157,-1679.75,0.00010545,2]
[348727792,1736755838166,-745.41,0.00010545,2]
[348727793,1736755838175,-1170.44,0.00010545,2]
[348727794,1736755838184,-587.6,0.00010545,2]
[348727795,1736755838194,-674.34,0.00010545,2]
[348727796,1736755838203,-632.86,0.00010545,2]
[348727797,1736755838212,-677.48948963,0.00010545,2]
[348727798,1736755838229,-1058.17051037,0.00010545,2]
[348727799,1736755838239,-558.72,0.00010546,2]
[348727800,1736755838248,-500.0,0.00010547,2]
[348727801,1736755838257,-500.0,0.00010547,2]
[348727802,1736755838266,-561.41,0.00010547,2]
[348727803,1736755838276,-500.0,0.00010547,2]
[348727804,1736755838285,-507.83,0.00010547,2]
[348727805,1736755838294,-18.79000723,0.00010547,2]
[348727806,1736755838310,-309.22929288,0.00010547,2]
[348727808,1736755839909,-500.0,0.00010444,2]
[348727809,1736755839919,-171.98069989,0.00010547,2]
[348727810,1736755839930,-663.08,0.00010547,2]
[348727811,1736755839941,-429.60202112,0.00010547,2]
[348727812,1736755840015,-1161.33140907,0.00010547,2]
[348727813,1736755840032,-746.21656981,0.00010547,2]
[348727814,1736755840042,-60.12343028,0.00010547,2]
[348727815,1736755840054,-762.91656972,0.00010547,2]
[348727816,1736755840065,-826.19,0.00010547,2]
[348727818,1736755840075,-500.0,0.00010547,2]
[348727820,1736755840084,-1518.62,0.00010547,2]
[348727822,1736755840094,-171.35,0.00010718,2]
[348727824,1736755840104,-612.66,0.00010718,2]
[348727826,1736755840113,-560.62,0.00010718,2]
[348727828,1736755840123,-500.0,0.00010718,2]
[348727830,1736755840132,-1201.99,0.00010718,2]
[348727832,1736755840142,-849.66,0.00010718,2]
[348727834,1736755840152,-765.44,0.00010718,2]
[348727836,1736755840161,-840.23,0.00010718,2]
[348727838,1736755840170,-507.03,0.00010718,2]
[348727839,1736755840180,-2194.51,0.00010718,2]
[348727841,1736755840190,-500.0,0.00010718,2]
[348727843,1736755840199,-500.0,0.00010718,2]
[348727845,1736755840209,-902.24,0.00010718,2]
[348727847,1736755840219,-500.0,0.00010718,2]
[348727849,1736755840229,-500.0,0.00010718,2]
[348727851,1736755840239,-500.0,0.00010718,2]
[348727854,1736755840249,-839.33348605,0.00010718,2]
[348727856,1736755840260,-297.75651395,0.00010718,2]
[348727858,1736755840270,-500.0,0.00010718,2]
[348727860,1736755840280,-500.0,0.00010718,2]
[348727862,1736755840290,-500.0,0.00010718,2]
[348727864,1736755840299,-1242.58,0.00010718,2]
[348727866,1736755840308,-975.37,0.00010718,2]
[348727868,1736755840319,-500.0,0.00010718,2]
[348727869,1736755840329,-500.0,0.00010718,2]
[348727871,1736755840339,-500.0,0.00010719,2]
[348727873,1736755840348,-500.0,0.00010719,2]
[348727875,1736755840358,-500.0,0.00010719,2]
[348727877,1736755840367,-500.0,0.00010719,2]
[348727879,1736755840377,-503.90070647,0.00010719,2]
[348727881,1736755840386,-500.0,0.00010719,2]
[348727883,1736755840396,-500.0,0.00010719,2]
[348727885,1736755840406,-511.412713,0.00010719,2]
[348727887,1736755840415,-500.0,0.00010719,2]
[348727889,1736755840425,-500.0,0.00010719,2]
[348727891,1736755840435,-500.0,0.00010719,2]
[348727913,1736755840638,-500.0,0.00010719,2]
[348727915,1736755840647,-500.0,0.00010719,2]
[348727917,1736755840656,-500.0,0.00010719,2]
[348727918,1736755840667,-500.0,0.00010719,2]
[348727920,1736755840676,-500.0,0.00010719,2]
[348727922,1736755840686,-500.0,0.00010719,2]
[348727923,1736755840695,-500.0,0.00010719,2]
[348727924,1736755840705,-500.0,0.00010719,2]
[348727925,1736755840714,-500.0,0.00010719,2]
[348727926,1736755840723,-500.0,0.00010719,2]
[348727927,1736755840733,-500.0,0.00010719,2]
[348727928,1736755840742,-500.0,0.00010719,2]
[348727929,1736755840751,-500.0,0.00010719,2]
[348727930,1736755840761,-500.0,0.00010719,2]
[348727931,1736755840770,-500.0,0.00010719,2]
[348727932,1736755840780,-500.0,0.00010719,2]
[348727933,1736755840789,-500.0,0.00010719,2]
[348727934,1736755840799,-500.0,0.00010719,2]
[348727935,1736755840811,-500.0,0.00010719,2]
[348727936,1736755840822,-500.0,0.00010719,2]
[348727937,1736755840831,-500.0,0.00010719,2]
[348727938,1736755840841,-500.0,0.00010719,2]
[348727939,1736755840850,-500.0,0.00010719,2]
[348727940,1736755840860,-500.0,0.00010719,2]
[348727941,1736755840869,-500.0,0.00010719,2]
[348727942,1736755840879,-359.48006658,0.00010719,2]
[348727945,1736755842724,-2970.93,0.00010444,2]
[348727946,1736755842735,-500.0,0.00010444,2]
[348727947,1736755842744,-2970.93,0.00010718,2]
[348727948,1736755842754,-500.0,0.00010718,2]
[348727949,1736755842763,-140.51993342,0.00010719,2]
[348727950,1736755842773,-556.13,0.00010719,2]
[348727951,1736755842782,-500.0,0.00010719,2]
[348727952,1736755842791,-500.0,0.00010719,2]
[348727953,1736755842801,-500.0,0.00010719,2]
[348727954,1736755842811,-500.0,0.00010719,2]
[348727955,1736755842820,-500.0,0.00010719,2]
[348727956,1736755842829,-500.0,0.00010719,2]
[348727957,1736755842839,-500.0,0.00010719,2]
[348727958,1736755842848,-500.0,0.00010719,2]
[348727959,1736755842857,-1696.0,0.00010719,2]
[348727960,1736755842867,-500.0,0.00010719,2]
[348727961,1736755842876,-500.0,0.00010719,2]
[348727962,1736755842886,-500.0,0.00010719,2]
[348727963,1736755842895,-500.0,0.00010719,2]
[348727964,1736755842905,-1488.28,0.00010719,2]
[348727965,1736755842914,-500.0,0.00010719,2]
[348727966,1736755842924,-500.0,0.00010719,2]
[348727967,1736755842933,-500.0,0.00010719,2]
[348727969,1736755842943,-500.0,0.00010719,2]
[348727971,1736755842952,-1097.84,0.00010719,2]
[348727972,1736755842961,-500.0,0.00010719,2]
[348727973,1736755842970,-500.0,0.00010719,2]
[348727974,1736755842979,-1520.31,0.00010719,2]
[348727975,1736755842988,-547.28,0.00010719,2]
[348727977,1736755842999,-500.0,0.00010719,2]
[348727979,1736755843009,-959.78006658,0.00010719,2]
[348727980,1736755843022,-2469.21993342,0.00010719,2]
[348727981,1736755843032,-500.0,0.00010719,2]
[348727982,1736755843042,-500.0,0.00010719,2]
[348727984,1736755843051,-1071.84,0.00010719,2]
[348727985,1736755843060,-1488.11,0.00010719,2]
[348727986,1736755843070,-500.0,0.00010719,2]
[348727987,1736755843079,-500.0,0.00010719,2]
[348727988,1736755843088,-642.35,0.00010719,2]
[348727989,1736755843098,-500.0,0.00010719,2]
[348727991,1736755843108,-500.0,0.00010719,2]
[348727993,1736755843118,-1081.86,0.00010719,2]
[348727995,1736755843128,-500.0,0.00010719,2]
[348727997,1736755843137,-500.0,0.00010719,2]
[348727999,1736755843146,-500.0,0.00010719,2]
[348728000,1736755843155,-865.54,0.00010719,2]
[348728001,1736755843164,-500.0,0.00010719,2]
[348728002,1736755843173,-500.0,0.00010719,2]
[348728003,1736755843182,-500.0,0.00010719,2]
[348728004,1736755843191,-566.93,0.00010719,2]
[348728005,1736755843200,-689.28,0.00010719,2]
[348728006,1736755843209,-500.0,0.00010719,2]
[348728007,1736755843219,-649.63,0.00010719,2]
[348728008,1736755843228,-500.0,0.00010719,2]
[348728009,1736755843238,-500.0,0.00010719,2]
[348728010,1736755843248,-500.0,0.00010719,2]
[348728011,1736755843257,-500.0,0.00010719,2]
[348728012,1736755843266,-1835.83,0.00010719,2]
[348728013,1736755843276,-182.13506658,0.00010719,2]
[348728014,1736755843348,-80.92911802,0.00010719,2]
[348728017,1736755845550,-500.0,0.00010444,2]
[348728018,1736755845707,-943.68695079,0.00010509,2]
[348728019,1736755845720,-75.95304921,0.00010509,2]
[348728020,1736755845730,-47.41537368,0.00010719,2]
[348728021,1736755845739,-500.0,0.00010719,2]
[348728022,1736755845749,-500.0,0.0001072,2]
[348728023,1736755845760,-500.0,0.0001072,2]
[348728024,1736755845769,-500.0,0.0001072,2]
[348728025,1736755845778,-500.0,0.0001072,2]
[348728026,1736755845788,-500.0,0.0001072,2]
[348728027,1736755845797,-500.0,0.0001072,2]
[348728028,1736755845807,-519.66,0.0001072,2]
[348728029,1736755845819,-500.0,0.0001072,2]
[348728030,1736755845830,-253.37149711,0.0001072,2]
[348728031,1736755845842,-246.62850289,0.0001072,2]
[348728032,1736755845851,-366.93524009,0.0001072,2]
[348728033,1736755845862,-133.06475991,0.0001072,2]
[348728034,1736755845871,-154.67623881,0.0001072,2]
[348728035,1736755845895,-500.0,0.00010718,2]
[348728036,1736755845906,-214.65,0.0001072,2]
[348728038,1736755845922,-374.07376119,0.0001072,2]
[348728039,1736755845931,-67.07696058,0.0001072,2]
[348728041,1736755845942,-264.1652,0.0001072,2]
[348728043,1736755891350,150.0,0.00022566,120]
[348728044,1736755982423,171.35,7.735e-05,2]
[348728045,1736756070817,150.0,0.00021078,120]
[348728046,1736756190954,1129.1,8.219e-05,2]
[348728049,1736756610787,150.0,0.00019296,120]
[348728051,1736756756594,9223.81187903,6.94e-05,2]
[348728052,1736756768978,8002.4428325,8e-05,2]
[348728053,1736756837418,1696.08944127,0.00023,120]
[348728077,1736757031790,-2222.96,8.97e-05,2]
[348728078,1736757031800,-250.0,9.212e-05,2]
[348728079,1736757031810,-250.0,9.255e-05,2]
[348728080,1736757031820,-1000.0,9.298e-05,2]
[348728081,1736757031830,-390.9278,9.434e-05,2]
[348728082,1736757031840,-1689.9949,9.434e-05,2]
[348728083,1736757031850,-585.77237393,9.434e-05,2]
[348728084,1736757031859,-308.13,9.483e-05,2]
[348728085,1736757031868,-150.0,9.532e-05,2]
[348728086,1736757031878,-1266.04,9.533e-05,2]
[348728087,1736757031889,-611.94984947,9.533e-05,2]
[348728088,1736757031925,-3313.32015053,9.533e-05,2]
[348728089,1736757031934,-500.0,9.533e-05,2]
[348728090,1736757031943,-509.85,9.533e-05,2]
[348728091,1736757031953,-752.93,9.533e-05,2]
[348728092,1736757031966,-850.48,9.533e-05,2]
[348728093,1736757031976,-4677.69,9.533e-05,2]
[348728094,1736757031986,-1473.41,9.533e-05,2]
[348728095,1736757031996,-500.0,9.533e-05,2]
[348728096,1736757032006,-780.01,9.533e-05,2]
[348728097,1736757032015,-2057.59,9.533e-05,2]
[348728098,1736757032027,-500.0,9.533e-05,2]
[348728099,1736757032036,-592.38,9.533e-05,2]
[348728100,1736757032046,-500.0,9.533e-05,2]
[348728101,1736757032055,-1105.75233592,9.533e-05,2]
[348728102,1736757032066,-547.96766408,9.533e-05,2]
[348728103,1736757032075,-1170.78862555,9.533e-05,3]
[348728104,1736757032084,-1173.97,9.533e-05,2]
[348728105,1736757032093,-524.14,9.533e-05,2]
[348728106,1736757032103,-566.25,9.533e-05,2]
[348728107,1736757032112,-1120.6,9.533e-05,2]
[348728108,1736757032122,-1145.73,9.533e-05,2]
[348728109,1736757032132,-1123.79,9.533e-05,2]
[348728110,1736757032144,-698.32,9.533e-05,2]
[348728111,1736757032154,-892.27,9.533e-05,2]
[348728112,1736757032163,-2069.59,9.533e-05,2]
[348728113,1736757032173,-1059.9,9.533e-05,2]
[348728114,1736757032182,-1996.69,9.533e-05,2]
[348728115,1736757032191,-500.0,9.533e-05,2]
[348728116,1736757032200,-500.0,9.533e-05,2]
[348728117,1736757032211,-660.76,9.533e-05,2]
[348728118,1736757032221,-500.0,9.533e-05,2]
[348728119,1736757032230,-500.0,9.533e-05,2]
[348728120,1736757032239,-500.0,9.533e-05,2]
[348728121,1736757032248,-500.0,9.533e-05,2]
[348728122,1736757032257,-1257.41,9.533e-05,2]
[348728123,1736757032266,-500.0,9.533e-05,2]
[348728124,1736757032276,-500.0,9.533e-05,2]
[348728125,1736757032285,-500.0,9.533e-05,2]
[348728126,1736757032295,-500.0,9.533e-05,2]
[348728128,1736757032304,-500.0,9.533e-05,2]
[348728129,1736757032313,-500.0,9.533e-05,2]
[348728131,1736757032323,-500.0,9.533e-05,2]
[348728133,1736757032332,-500.0,9.533e-05,2]